bitfinex-derivatives/quotes_ETHF0:USTF0_20250709
["timestamp","ask_amount","ask_price","bid_price","bid_amount"]
[1752032720973,43.53059832,2594.8,2594.7,0.6934]
[1752032723470,0.77065,2594.6,2594.5,1.6328]
[1752032723672,0.77065,2594.6,2594.5,2.2881]
[1752032723873,4.02205832,2594.7,2594.6,0.77065]
[1752032724073,4.02202832,2594.7,2594.6,0.6553]
[1752032724274,4.02202832,2594.7,2594.6,1.636]
[1752032724875,4.71512832,2594.7,2594.6,1.636]
[1752032725272,4.02202832,2594.7,2594.6,1.636]
[1752032725676,4.71512832,2594.7,2594.6,1.636]
[1752032726083,4.71512832,2594.7,2594.6,0.6553]
[1752032727773,0.77068,2594.5,2594.4,0.9807]
[1752032728074,2.76958832,2594.5,2594.4,1.636]
[1752032728274,3.23251832,2594.5,2594.2,0.6721]
[1752032728479,0.7708,2594.1,2594.0,4.1885]
[1752032728680,2.76970832,2594.1,2594.0,4.8438]
[1752032728881,2.07660832,2594.1,2594.0,4.8438]
[1752032729080,2.76970832,2594.1,2594.0,4.8438]
[1752032730881,4.11560832,2594.1,2594.0,4.8438]
[1752032733184,3.42250832,2594.1,2594.0,3.8631]
[1752032733584,4.11560832,2594.1,2594.0,3.8631]
[1752032733780,4.11560832,2594.1,2594.0,3.2078]
[1752032733983,4.11560832,2594.1,2594.0,3.8631]
[1752032735682,0.6931,2594.1,2594.0,4.8438]
[1752032735985,0.7708,2594.1,2594.0,5.61462]
[1752032737191,1.4639,2594.1,2594.0,0.6553]
[1752032737685,28.9856,2594.1,2594.0,0.6553]
[1752032737988,28.9866,2594.1,2594.0,0.6553]
[1752032738188,29.6186,2594.1,2594.0,0.6553]
[1752032739887,29.6186,2594.1,2593.8,0.9807]
[1752032739888,0.77086,2593.9,2593.8,0.9807]
[1752032740191,2.76976832,2593.9,2593.8,1.636]
[1752032740386,2.07666832,2593.9,2593.8,1.636]
[1752032740684,2.76976832,2593.9,2593.8,1.636]
[1752032741487,0.77089,2593.8,2593.7,3.2078]
[1752032741685,0.77098,2593.5,2593.4,6.66382553]
[1752032741885,2.07678832,2593.5,2593.4,8.29982553]
[1752032742085,2.07678832,2593.5,2593.4,4.8438]
[1752032743195,2.76988832,2593.5,2593.4,4.8438]
[1752032744091,29.00688832,2593.5,2593.4,3.8631]
[1752032744291,29.00988832,2593.5,2593.4,0.6553]
[1752032744492,69.80988832,2593.5,2593.4,0.6553]
[1752032744790,70.47318832,2593.5,2593.4,0.6553]
[1752032745191,0.77106,2593.2,2593.1,4.1885]
[1752032745392,67.047,2593.5,2593.1,4.8438]
[1752032745584,0.77105,2593.3,2593.2,0.665]
[1752032745788,0.77105,2593.3,2593.1,5.61488]
[1752032745789,0.77106,2593.2,2593.1,3.2078]
[1752032745985,2.07686832,2593.2,2593.1,3.8554]
[1752032746188,0.77106,2593.2,2593.1,3.8554]
[1752032746487,0.77103,2593.3,2593.1,5.16120832]
[1752032746692,0.77103,2593.3,2593.2,0.665]
[1752032746890,0.77103,2593.3,2593.2,3.06436]
[1752032747090,0.77103,2593.4,2593.2,2.08366]
[1752032747290,40.8,2593.5,2593.3,1.76992]
[1752032747490,40.8,2593.5,2593.4,4.62641]
[1752032747685,41.57098,2593.5,2593.4,5.62531]
[1752032747890,40.8,2593.5,2593.4,5.62531]
[1752032748394,0.77098,2593.5,2593.4,5.62531]
[1752032748794,41.57097,2593.6,2593.5,0.77097]
[1752032748996,41.57097,2593.6,2593.5,1.3041]
[1752032749295,41.57097,2593.6,2593.5,2.303]
[1752032749495,41.57097,2593.6,2593.5,3.07398]
[1752032750193,41.57097,2593.6,2593.5,2.303]
[1752032750693,41.57097,2593.6,2593.5,3.07398]
[1752032751089,42.23117,2593.6,2593.5,2.303]
[1752032751291,41.57097,2593.6,2593.5,2.303]
[1752032751498,0.77097,2593.6,2593.5,2.303]
[1752032753298,1.43117,2593.6,2593.5,2.303]
[1752032753502,0.77097,2593.6,2593.5,2.303]
[1752032755102,1.43117,2593.6,2593.5,2.303]
[1752032756498,0.77097,2593.6,2593.5,2.303]
[1752032756700,0.77097,2593.6,2593.5,3.07398]
[1752032757099,0.77094,2593.7,2593.6,0.77095]
[1752032757300,0.77094,2593.7,2593.6,1.41855]
[1752032757499,0.77094,2593.7,2593.6,1.6465]
[1752032758097,0.77094,2593.7,2593.6,2.41745]
[1752032758603,0.77094,2593.7,2593.6,1.6465]
[1752032759104,0.77094,2593.7,2593.6,2.41745]
[1752032759501,0.77094,2593.7,2593.6,1.6465]
[1752032760803,1.43114,2593.7,2593.6,1.6465]
[1752032761203,2.76484,2593.7,2593.6,1.6465]
[1752032761507,2.76484,2593.7,2593.6,0.6476]
[1752032761909,2.76484,2593.7,2593.6,1.6465]
[1752032762405,0.77098,2593.5,2593.4,3.2078]
[1752032762606,1.43118,2593.5,2593.4,3.8554]
[1752032763006,2.69088,2593.5,2593.4,3.8554]
[1752032763205,2.03068,2593.5,2593.4,3.8554]
[1752032763608,2.69088,2593.5,2593.4,3.8554]
[1752032763908,2.69088,2593.5,2593.4,4.8543]
[1752032764406,2.69088,2593.5,2593.4,3.8554]
[1752032764709,2.69088,2593.5,2593.4,4.8543]
[1752032764905,0.77098,2593.5,2593.4,4.8543]
[1752032765306,0.77098,2593.5,2593.4,5.4866]
[1752032765611,0.77098,2593.5,2593.4,11.25759]
[1752032765807,0.77091,2593.8,2593.5,1.30580832]
[1752032766007,0.77086,2593.9,2593.8,0.77087]
[1752032766313,0.77086,2593.9,2593.8,3.05137]
[1752032767510,3.2078,2594.5,2593.8,2.2805]
[1752032767705,0.77077,2594.2,2594.1,4.51360832]
[1752032767903,0.77076,2594.3,2594.2,0.77077]
[1752032768103,0.77076,2594.3,2594.2,2.41727]
[1752032768411,1.43248865,2594.4,2594.3,0.77071]
[1752032768612,1.4324613,2594.4,2594.3,2.71051832]
[1752032768813,1.4324613,2594.4,2594.3,3.35811832]
[1752032769014,1.4324613,2594.4,2594.3,2.05231]
[1752032769309,0.77071,2594.4,2594.3,3.05121]
[1752032769511,0.77069,2594.5,2594.3,3.05122]
[1752032769713,0.77066,2594.6,2594.4,4.2067]
[1752032770011,0.77066,2594.6,2594.5,2.41718]
[1752032770810,5.49692275,2595.3,2594.5,6.6465]
[1752032771005,2.87435483,2595.2,2595.0,0.77052]
[1752032771211,1.4419,2595.2,2595.1,1.6465]
[1752032771507,2.87328674,2595.2,2595.1,1.6465]
[1752032772310,1.4419,2595.2,2595.1,1.6465]
[1752032772813,2.1021,2595.2,2595.1,1.6465]
[1752032773114,1.4419,2595.2,2595.1,1.6465]
[1752032773313,1.4419,2595.2,2595.1,0.6476]
[1752032773514,2.1021,2595.2,2595.1,1.6465]
[1752032773710,1.4419,2595.2,2595.1,1.6465]
[1752032773910,2.1021,2595.2,2595.1,1.6465]
[1752032774321,2.1021,2595.2,2595.1,0.6476]
[1752032775605,3.40790832,2595.2,2595.1,0.6476]
[1752032776514,3.40790832,2595.2,2595.1,1.6465]
[1752032777015,3.40790832,2595.2,2595.1,0.6476]
[1752032778518,0.77053,2595.0,2594.9,3.2078]
[1752032778718,2.70523832,2595.0,2594.9,3.8646]
[1752032779017,2.70523832,2595.0,2594.9,3.2078]
[1752032779317,2.70523832,2595.0,2594.9,3.8646]
[1752032780814,2.70523832,2595.0,2594.9,0.6568]
[1752032781818,2.07633832,2595.0,2594.9,0.6568]
[1752032782017,2.70523832,2595.0,2594.9,0.6568]
[1752032782418,0.77053,2595.0,2594.9,0.6568]
[1752032782617,0.77053,2595.0,2594.9,1.6796]
[1752032782819,0.77053,2595.0,2594.9,4.8874]
[1752032784324,1.39943,2595.0,2594.9,0.6568]
[1752032784526,2.70523832,2595.0,2594.9,0.6568]
[1752032785716,0.77052,2595.1,2595.0,0.77052]
[1752032785920,0.7705,2595.1,2595.0,1.6796]
[1752032791834,0.7705,2595.1,2595.0,4.8874]
[1752032792229,1.3994,2595.1,2595.0,4.8874]
[1752032792531,0.7705,2595.1,2595.0,4.8874]
[1752032797033,0.7705,2595.1,2595.0,1.6796]
[1752032797225,0.7705,2595.1,2595.0,4.8874]
[1752032799641,1.2566,2595.3,2595.0,6.19320832]
[1752032799836,0.77043,2595.4,2595.2,2.07625832]
[1752032800036,26.3,2595.9,2595.3,6.88090832]
[1752032800037,0.6813,2595.7,2595.3,6.88090832]
[1752032800247,0.77032,2595.7,2595.6,4.51360832]
[1752032800433,0.77032,2595.7,2595.6,5.17040832]
[1752032800745,0.77032,2595.7,2595.6,6.19320832]
[1752032803748,0.77031,2595.8,2595.6,10.41957385]
[1752032803942,0.77029,2595.9,2595.7,1.6598]
[1752032804143,0.77029,2595.9,2595.8,2.98540832]
[1752032805348,0.6803,2596.3,2595.8,2.98540832]
[1752032805543,0.6803,2596.3,2596.2,3.2078]
[1752032805740,2.14124,2596.3,2596.2,4.8874]
[1752032805948,1.45044,2596.3,2596.2,4.8874]
[1752032806144,2.14124,2596.3,2596.2,4.8874]
[1752032808039,0.77014,2596.3,2596.2,4.8874]
[1752032809944,0.77012,2596.4,2596.3,0.77013]
[1752032810145,0.6625,2596.5,2596.4,0.6397]
[1752032810146,0.77008,2596.5,2596.4,0.6397]
[1752032810347,0.77008,2596.5,2596.4,2.95880832]
[1752032810948,0.6586,2596.8,2596.5,0.77007]
[1752032810949,0.77004,2596.7,2596.5,0.77007]
[1752032811148,0.77004,2596.7,2596.6,3.8475]
[1752032811342,1.42862,2596.8,2596.6,5.63084]
[1752032811542,1.42862,2596.8,2596.7,1.0133]
[1752032811743,1.42862,2596.8,2596.7,1.653]
[1752032812447,1.92465,2597.3,2596.7,1.653]
[1752032812649,0.76991,2597.1,2597.0,3.2078]
[1752032812844,1.46071,2597.1,2597.0,3.8475]
[1752032813046,2.0103,2597.1,2596.7,1.0133]
[1752032813254,0.77,2596.8,2596.7,4.2211]
[1752032813455,0.77,2596.8,2596.7,4.8608]
[1752032813954,1.4608,2596.8,2596.7,4.8608]
[1752032817564,2.1426,2596.8,2596.7,4.8608]
[1752032819660,2.1426,2596.8,2596.7,3.8475]
[1752032820757,2.1426,2596.8,2596.7,4.8608]
[1752032820958,2.1426,2596.8,2596.7,3.8475]
[1752032821766,2.1426,2596.8,2596.7,4.8608]
[1752032822271,0.77008,2596.5,2596.4,3.2078]
[1752032822564,0.77008,2596.5,2596.1,3.2078]
[1752032822565,0.77017,2596.2,2596.1,3.2078]
[1752032822772,2.76677832,2596.2,2596.1,3.2078]
[1752032823572,4.12647832,2596.2,2596.1,3.2078]
[1752032823872,4.12647832,2596.2,2596.1,3.8475]
[1752032824067,4.12647832,2596.2,2596.1,3.2078]
[1752032827077,3.43567832,2596.2,2596.1,3.8475]
[1752032827569,2.0505,2596.2,2596.1,5.631]
[1752032827774,1.3597,2596.2,2596.1,5.631]
[1752032828175,1.3597,2596.2,2596.1,4.8608]
[1752032828379,1.3597,2596.2,2596.1,5.631]
[1752032829179,2.0505,2596.2,2596.1,5.631]
[1752032829479,1.3597,2596.2,2596.1,5.631]
[1752032830075,3.2078,2596.9,2596.1,4.8608]
[1752032830274,0.692,2596.6,2596.5,0.77008]
[1752032830477,0.692,2596.6,2596.5,2.42308]
[1752032831183,2.0458,2596.6,2596.5,1.40978]
[1752032831578,2.7366,2596.6,2596.5,1.40978]
[1752032831879,2.0458,2596.6,2596.5,1.40978]
[1752032832079,2.7366,2596.6,2596.5,2.42308]
[1752032832877,2.0458,2596.6,2596.5,2.42308]
[1752032833082,1.30580832,2596.9,2596.7,0.77003]
[1752032833282,0.77002,2596.8,2596.7,0.6397]
[1752032833582,2.14052,2596.8,2596.7,1.40973]
[1752032834086,2.0613,2596.8,2596.7,1.40973]
[1752032834480,1.3705,2596.8,2596.7,5.63083]
[1752032834675,0.76995,2597.0,2596.8,0.76998]
[1752032834983,0.76997,2596.9,2596.8,1.0133]
[1752032835184,2.07577832,2596.9,2596.8,0.6397]
[1752032835484,2.76657832,2596.9,2596.8,0.6397]
[1752032836382,2.71117832,2596.9,2596.8,0.6397]
[1752032838282,0.77,2596.8,2596.7,3.2078]
[1752032838487,0.77009,2596.5,2596.4,3.2078]
[1752032838783,1.40549,2596.5,2596.4,3.8606]
[1752032838983,1.30580832,2596.6,2596.5,0.77008]
[1752032839181,1.94120832,2596.6,2596.5,2.42278]
[1752032839380,1.30580832,2596.6,2596.5,2.42278]
[1752032839588,3.45955832,2596.6,2596.5,2.42278]
[1752032839793,4.09495832,2596.6,2596.5,2.42278]
[1752032839990,4.09495832,2596.6,2596.5,1.6527]
[1752032840185,4.09495832,2596.6,2596.5,2.42278]
[1752032840491,3.32490832,2596.6,2596.5,1.42288]
[1752032840987,1.3837,2596.6,2596.5,2.42278]
[1752032841191,0.6427,2596.7,2596.6,0.77005]
[1752032841387,3.42476832,2597.0,2596.6,1.6527]
[1752032841588,3.42476832,2597.0,2596.8,0.76999]
[1752032841791,1.40537,2596.9,2596.8,1.42279]
[1752032841989,2.75437,2596.9,2596.8,1.42279]
[1752032842292,2.75437,2596.9,2596.8,0.6528]
[1752032842687,2.75437,2596.9,2596.7,3.2078]
[1752032842896,2.07580832,2596.8,2596.7,3.2078]
[1752032843094,4.06020832,2596.8,2596.7,3.8606]
[1752032843494,0.77003,2596.7,2596.5,0.77006]
[1752032843696,1.9779,2596.7,2596.5,0.77006]
[1752032843896,1.30580832,2596.6,2596.5,1.42286]
[1752032844099,3.24270832,2596.6,2596.5,1.42286]
[1752032844293,2.60730832,2596.6,2596.5,1.42286]
[1752032844997,3.24270832,2596.6,2596.5,1.42286]
[1752032845387,3.24270832,2596.6,2596.5,0.6528]
[1752032845388,4.01276832,2596.6,2596.5,0.6528]
[1752032845595,0.77008,2596.5,2596.4,3.2078]
[1752032845894,2.70698,2596.5,2596.4,3.8606]
[1752032846091,2.70698,2596.5,2596.4,3.2078]
[1752032846494,3.64988,2596.5,2596.4,3.2078]
[1752032846691,0.77017,2596.2,2596.1,3.978]
[1752032846887,2.71137832,2596.2,2596.1,4.6308]
[1752032847099,2.07597832,2596.2,2596.1,4.6308]
[1752032847294,2.71137832,2596.2,2596.1,4.6308]
[1752032847598,2.07597832,2596.2,2596.1,4.6308]
[1752032847788,3.44317832,2596.2,2596.1,4.6308]
[1752032848194,3.30840832,2596.2,2596.1,4.6308]
[1752032849297,4.07857832,2596.2,2596.1,4.6308]
[1752032849691,4.07857832,2596.2,2596.1,3.8606]
[1752032849898,4.07857832,2596.2,2596.1,4.6308]
[1752032850593,4.07857832,2596.2,2596.1,3.8606]
[1752032850793,3.30840832,2596.2,2596.1,4.6308]
[1752032851196,4.07857832,2596.2,2596.1,4.6308]
[1752032851595,4.07857832,2596.2,2596.1,3.8606]
[1752032852301,4.07857832,2596.2,2596.1,3.2078]
[1752032852302,3.44317832,2596.2,2596.1,3.2078]
[1752032852502,4.07857832,2596.2,2596.1,3.2078]
[1752032853301,4.07857832,2596.2,2596.1,3.8606]
[1752032855907,4.07857832,2596.2,2596.1,3.2078]
[1752032857607,4.07857832,2596.2,2596.1,3.8606]
[1752032860306,5.23385832,2596.2,2595.8,8.43399553]
[1752032860606,0.77026,2595.9,2595.8,7.43409553]
[1752032860806,1.40566,2595.9,2595.8,8.08689553]
[1752032861004,2.75976,2595.9,2595.8,8.08689553]
[1752032861606,3.39516,2595.9,2595.8,8.08689553]
[1752032862902,3.39516,2595.9,2595.8,9.08679553]
[1752032863205,3.39516,2595.9,2595.8,5.63077]
[1752032864402,2.6249,2595.9,2595.8,5.63077]
[1752032865107,1.30580832,2596.0,2595.9,0.77026]
[1752032865308,1.30580832,2596.0,2595.9,1.42306]
[1752032865502,1.30580832,2596.0,2595.9,2.42296]
[1752032866708,1.99080832,2596.0,2595.9,2.42296]
[1752032867003,2.76103832,2596.0,2595.9,2.42296]
[1752032867203,2.76103832,2596.0,2595.9,0.6528]
[1752032867412,4.03393832,2596.0,2595.9,0.6528]
[1752032867707,4.03393832,2596.0,2595.8,3.45602553]
[1752032867708,0.77026,2595.9,2595.8,3.45602553]
[1752032867909,0.77026,2595.9,2595.5,7.81583405]
[1752032867910,0.77029,2595.8,2595.7,3.45602553]
[1752032868100,3.00130832,2595.8,2595.6,3.45602553]
[1752032868410,0.77044,2595.3,2595.2,3.2078]
[1752032868611,0.77044,2595.3,2595.2,3.8886]
[1752032869004,3.50374,2595.3,2595.2,3.8886]
[1752032869203,3.50374,2595.3,2595.2,7.34697871]
[1752032869402,3.50374,2595.3,2595.2,8.11744871]
[1752032869600,2.7333,2595.3,2595.2,8.11744871]
[1752032870406,2.7333,2595.3,2595.2,4.65907]
[1752032870807,3.50374,2595.3,2595.2,4.65907]
[1752032871007,2.7333,2595.3,2595.2,4.65907]
[1752032871809,3.50374,2595.3,2595.2,4.65907]
[1752032872009,2.7333,2595.3,2595.2,4.65907]
[1752032872504,3.50374,2595.3,2595.2,4.65907]
[1752032872698,3.50374,2595.3,2595.2,3.8886]
[1752032873103,3.50374,2595.3,2595.2,0.6808]
[1752032874210,3.50374,2595.3,2595.2,1.45127]
[1752032874404,3.50374,2595.3,2595.2,0.6808]
[1752032875509,3.50374,2595.3,2595.2,1.45127]
[1752032875710,3.50374,2595.3,2595.2,0.6808]
[1752032875912,3.50374,2595.3,2595.2,1.45127]
[1752032877011,2.7333,2595.3,2595.2,1.45127]
[1752032877213,3.50374,2595.3,2595.2,2.43437]
[1752032878511,3.50374,2595.3,2595.2,1.45127]
[1752032880612,3.50374,2595.3,2595.2,0.6808]
[1752032880820,0.77053,2595.0,2594.9,3.2078]
[1752032881117,0.77053,2595.0,2594.6,6.66617871]
[1752032881118,0.77062,2594.7,2594.6,6.66617871]
[1752032881313,1.45562,2594.7,2594.6,3.2078]
[1752032881623,0.77068,2594.5,2594.4,3.45837871]
[1752032881819,0.77068,2594.5,2594.2,7.43693871]
[1752032881820,0.77074,2594.3,2594.2,7.43693871]
[1752032882113,2.76154832,2594.3,2594.2,4.65936]
[1752032882318,2.76154832,2594.3,2594.2,3.8886]
[1752032882517,3.39014832,2594.3,2594.2,3.8886]
[1752032882715,4.07514832,2594.3,2594.2,3.8886]
[1752032883217,3.30440832,2594.3,2594.2,4.65937]
[1752032883414,4.07514832,2594.3,2594.2,4.65937]
[1752032883915,4.07514832,2594.3,2594.2,3.8886]
[1752032884318,4.07514832,2594.3,2594.2,4.65937]
[1752032884720,3.30440832,2594.3,2594.2,4.65937]
[1752032885415,4.07514832,2594.3,2594.2,4.65937]
[1752032885622,4.07514832,2594.3,2594.2,3.8886]
[1752032887021,3.30440832,2594.3,2594.2,4.65937]
[1752032889028,1.30580832,2594.3,2594.2,5.64247]
[1752032889321,2.76154832,2594.3,2594.2,3.8886]
[1752032889725,2.07654832,2594.3,2594.2,3.8886]
[1752032889928,2.76154832,2594.3,2594.2,4.65937]
[1752032890221,2.07654832,2594.3,2594.2,3.8886]
[1752032890525,2.76154832,2594.3,2594.2,3.8886]
[1752032890821,2.76154832,2594.3,2594.2,3.97857]
[1752032891021,2.76154832,2594.3,2594.2,3.2078]
[1752032891422,2.76154832,2594.3,2594.2,3.8886]
[1752032891620,2.76154832,2594.3,2594.2,4.65937]
[1752032891925,2.64270832,2594.3,2594.2,5.64247]
[1752032892524,2.64270832,2594.3,2594.2,4.65937]
[1752032892919,1.30580832,2594.3,2594.2,4.65937]
[1752032893117,0.77071,2594.4,2594.3,0.77072]
[1752032893318,2.07651832,2594.4,2594.3,0.6808]
[1752032893724,2.07651832,2594.4,2594.3,1.45154]
[1752032893926,2.76151832,2594.4,2594.3,1.45154]
[1752032895527,1.99080832,2594.4,2594.3,1.45154]
[1752032896523,1.99080832,2594.4,2594.3,2.43464]
[1752032896727,2.76151832,2594.4,2594.3,2.43464]
[1752032897128,1.99080832,2594.4,2594.3,2.43464]
[1752032897525,2.76151832,2594.4,2594.3,2.43464]
[1752032897729,2.76151832,2594.4,2594.3,1.45154]
[1752032898625,2.76151832,2594.4,2594.3,2.40004]
[1752032898827,1.30580832,2594.4,2594.3,2.40004]
[1752032899523,42.22255,2594.7,2594.5,0.77065]
[1752032899724,2.07645832,2594.6,2594.5,0.77065]
[1752032899926,0.77068,2594.5,2594.4,1.41948]
[1752032900321,0.77068,2594.5,2594.4,3.00268]
[1752032901031,0.77068,2594.5,2594.4,2.232]
[1752032901333,1.45758,2594.5,2594.4,3.00271]
[1752032901523,2.76878,2594.5,2594.4,3.00271]
[1752032902528,1.9981,2594.5,2594.4,3.00271]
[1752032902727,0.6869,2594.5,2594.4,3.00271]
[1752032903329,1.45758,2594.5,2594.4,3.00271]
[1752032903833,0.77068,2594.5,2594.4,1.40541]
[1752032904028,1.45758,2594.5,2594.4,1.40541]
[1752032904229,0.77068,2594.5,2594.4,0.6347]
[1752032904428,2.71968,2594.5,2594.4,1.40541]
[1752032904629,2.71968,2594.5,2594.4,0.6347]
[1752032907733,2.71968,2594.5,2594.4,1.40541]
[1752032907935,2.71968,2594.5,2594.4,0.6347]
[1752032911032,1.45758,2594.5,2594.4,0.6347]
[1752032911337,2.76338832,2594.5,2594.4,1.5832]
[1752032911636,4.19544803,2594.5,2594.4,1.5832]
[1752032912232,2.76338832,2594.5,2594.4,1.5832]
[1752032912439,4.19548904,2594.5,2594.4,1.5832]
[1752032912638,4.19548904,2594.5,2594.4,2.35391]
[1752032913240,2.88968072,2594.5,2594.4,2.35391]
[1752032913437,5.49692275,2595.0,2594.4,1.5832]
[1752032913741,0.77064,2594.7,2594.6,0.77063]
[1752032913940,2.2027249,2594.7,2594.6,1.40533]
[1752032914235,2.2027249,2594.7,2594.6,2.35383]
[1752032914831,1.4320849,2594.7,2594.6,2.35383]
[1752032915035,2.2027049,2594.7,2594.6,2.35383]
[1752032915737,0.77062,2594.7,2594.6,2.35383]
[1752032916438,0.77062,2594.7,2594.6,1.5832]
[1752032916638,1.45752,2594.7,2594.6,1.5832]
[1752032917039,0.77062,2594.7,2594.6,2.35385]
[1752032917645,2.07642832,2594.8,2594.7,0.77062]
[1752032917840,2.07642832,2594.8,2594.7,2.35382]
[1752032918040,2.07642832,2594.8,2594.7,1.40532]
[1752032918339,1.30580832,2594.8,2594.7,2.35382]
[1752032919847,1.30580832,2595.0,2594.9,0.77056]
[1752032920145,1.30580832,2595.0,2594.9,2.35376]
[1752032920536,1.30580832,2595.0,2594.9,2.98246]
[1752032922444,1.30580832,2595.0,2594.9,2.35376]
[1752032922646,1.99270832,2595.0,2594.9,2.35376]
[1752032922843,1.30580832,2595.0,2594.9,2.35376]
[1752032923043,1.99270832,2595.0,2594.9,2.35376]
[1752032923240,1.30580832,2595.0,2594.9,2.35376]
[1752032923444,1.99270832,2595.0,2594.9,2.35376]
[1752032923945,2.76323832,2595.0,2594.9,2.35376]
[1752032926647,2.76323832,2595.0,2594.9,1.46746]
[1752032927247,0.77056,2594.9,2594.8,3.2078]
[1752032927448,3.40636,2594.9,2594.8,3.2078]
[1752032927648,3.40636,2594.9,2594.8,3.97839]
[1752032927846,3.40636,2594.9,2594.8,4.67529]
[1752032928047,2.76846,2594.9,2594.8,3.9047]
[1752032928347,3.40636,2594.9,2594.8,3.9047]
[1752032928649,3.40636,2594.9,2594.8,3.2078]
[1752032929143,3.40636,2594.9,2594.8,3.9047]
[1752032929853,1.9979,2594.9,2594.8,4.67529]
[1752032930149,2.6358,2594.9,2594.8,5.63429]
[1752032930345,1.9979,2594.9,2594.8,5.63429]
[1752032930546,3.40636,2594.9,2594.8,5.63429]
[1752032933244,3.40636,2594.9,2594.8,2.42649]
[1752032933446,3.40636,2594.9,2594.8,1.6559]
[1752032933648,3.40636,2594.9,2594.8,0.6969]
[1752032936554,0.77059,2594.8,2594.7,3.2078]
[1752032936747,3.35779832,2594.8,2594.7,0.6969]
[1752032936946,3.99569832,2594.8,2594.7,0.6969]
[1752032937446,3.35779832,2594.8,2594.7,0.6969]
[1752032937742,3.99569832,2594.8,2594.7,0.6969]
[1752032943451,0.77065,2594.6,2594.5,3.45837871]
[1752032943647,2.71435832,2594.6,2594.5,4.15527871]
[1752032943855,2.71435832,2594.6,2594.5,3.45837871]
[1752032944054,2.71435832,2594.6,2594.5,4.15527871]
[1752032944451,2.71435832,2594.6,2594.5,3.45837871]
[1752032944652,2.71435832,2594.6,2594.5,4.15527871]
[1752032945949,2.71435832,2594.6,2594.5,5.88495871]
[1752032948051,1.30580832,2594.6,2594.5,5.88495871]
[1752032948251,1.30580832,2594.6,2594.5,6.53365871]
[1752032950765,2.07645832,2594.6,2594.5,6.53365871]
[1752032951267,2.71435832,2594.6,2594.5,6.53365871]
[1752032953066,1.94370832,2594.6,2594.5,6.53365871]
[1752032954066,2.71435832,2594.6,2594.5,6.53365871]
[1752032954770,1.94370832,2594.6,2594.5,6.53365871]
[1752032955369,2.71435832,2594.6,2594.5,6.53365871]
[1752032955570,2.71435832,2594.6,2594.5,5.88495871]
[1752032955970,2.71435832,2594.6,2594.5,4.92595871]
[1752032956169,2.71435832,2594.6,2594.5,4.15527871]
[1752032956367,2.71435832,2594.6,2594.5,4.92595871]
[1752032956769,2.71435832,2594.6,2594.5,4.15527871]
[1752032957067,2.71435832,2594.6,2594.5,4.92595871]
[1752032957269,2.71435832,2594.6,2594.5,4.15527871]
[1752032957669,2.71435832,2594.6,2594.5,4.92595871]
[1752032958669,1.94370832,2594.6,2594.5,4.92595871]
[1752032958871,1.94370832,2594.6,2594.5,5.91035871]
[1752032960069,1.94370832,2594.6,2594.5,5.87325871]
[1752032960570,2.15404,2594.7,2594.6,0.77065]
[1752032960571,1.3834,2594.7,2594.6,0.77065]
[1752032960872,4.10322832,2594.7,2594.6,2.41485]
[1752032961069,3.45982832,2594.7,2594.6,2.41485]
[1752032961370,4.10322832,2594.7,2594.6,2.41485]
[1752032961966,3.33260832,2594.7,2594.6,2.41485]
[1752032962166,1.94920832,2594.7,2594.6,2.41485]
[1752032962969,2.71982832,2594.7,2594.6,2.41485]
[1752032963570,0.77065,2594.6,2594.5,4.22903871]
[1752032963775,1.2832,2594.6,2594.5,4.22903871]
[1752032963973,2.05385,2594.6,2594.5,4.88883871]
[1752032964174,2.69725,2594.6,2594.5,4.88883871]
[1752032965377,2.69725,2594.6,2594.5,5.87323871]
[1752032965578,2.69725,2594.6,2594.5,4.88883871]
[1752032966178,1.9266,2594.6,2594.5,4.88883871]
[1752032966679,2.69725,2594.6,2594.5,4.88883871]
[1752032969180,1.9266,2594.6,2594.5,4.88883871]
[1752032969480,1.9266,2594.6,2594.5,5.87323871]
[1752032969881,1.9266,2594.6,2594.5,2.41486]
[1752032970082,1.9266,2594.6,2594.5,5.88305581]
[1752032970276,2.69725,2594.6,2594.5,5.88305581]
[1752032970477,1.9266,2594.6,2594.5,5.88305581]
[1752032970879,1.9266,2594.6,2594.5,5.88306141]
[1752032971384,1.9266,2594.6,2594.5,2.41486]
[1752032971584,1.9266,2594.6,2594.5,5.88314727]
[1752032972283,1.9266,2594.6,2594.5,2.41486]
[1752032977981,1.9266,2594.6,2594.5,5.88344471]
[1752032978189,1.9266,2594.6,2594.5,5.88343679]
[1752032978384,1.9266,2594.6,2594.5,2.41486]
[1752032978585,1.9266,2594.6,2594.5,5.88345828]
[1752032978887,1.9266,2594.6,2594.5,5.88345827]
[1752032979082,1.9266,2594.6,2594.5,2.41486]
[1752032981189,0.6434,2594.6,2594.5,2.41486]
[1752032982788,1.30580832,2594.7,2594.6,0.77065]
[1752032982994,1.30580832,2594.7,2594.6,5.88327282]
[1752032983188,1.94920832,2594.7,2594.6,5.88327282]
[1752032983395,1.30580832,2594.7,2594.6,5.88327282]
[1752032983692,1.94920832,2594.7,2594.6,5.88327282]
[1752032983892,1.94920832,2594.7,2594.6,9.09107282]
[1752032989402,2.71982832,2594.7,2594.6,8.10667282]
[1752032989701,3.23170832,2594.7,2594.6,8.10667282]
[1752032990101,1.94920832,2594.7,2594.6,9.10407282]
[1752032990304,1.30580832,2594.7,2594.6,9.10407282]
[1752032999404,1.96340832,2594.9,2594.8,0.77059]
[1752032999609,2.62220832,2594.9,2594.8,2.41689]
[1752032999815,1.96340832,2594.9,2594.8,5.88421466]
[1752033000008,2.62220832,2594.9,2594.8,5.88421466]
[1752033000209,0.6576,2594.9,2594.8,5.88421466]
[1752033000517,1.96340832,2594.9,2594.8,5.88421466]
[1752033000713,2.62220832,2594.9,2594.8,5.88421466]
[1752033001112,1.96340832,2594.9,2594.8,5.88421466]
[1752033001315,2.62220832,2594.9,2594.8,5.88421466]